bitfinex/quotes_SOLUSD_20230110
["timestamp","ask_amount","ask_price","bid_price","bid_amount"]
[1673311341830,20.0,16.438,16.422,115.7369]
[1673311342457,20.0,16.442,16.422,115.7369]
[1673311342895,20.0,16.442,16.426,17.0]
[1673311343945,17.0,16.441,16.426,17.0]
[1673311344132,20.0,16.439,16.426,17.0]
[1673311344979,20.0,16.44,16.426,17.0]
[1673311345718,45.62,16.445,16.426,17.0]
[1673311345719,45.62,16.445,16.427,20.0]
[1673311345933,45.62,16.448,16.428,20.0]
[1673311346144,65.61,16.45,16.429,20.0]
[1673311346360,65.61,16.45,16.429,134.3007]
[1673311346757,65.61,16.45,16.43,20.0]
[1673311346969,20.0,16.449,16.431,20.0]
[1673311347405,20.0,16.449,16.432,20.0]
[1673311347594,20.0,16.449,16.432,38.09964779]
[1673311348783,20.0,16.449,16.432,18.09964779]
[1673311351185,20.0,16.449,16.433,17.0]
[1673311352262,20.0,16.449,16.434,114.6583]
[1673311353836,20.0,16.449,16.435,17.0]
[1673311355722,20.0,16.447,16.435,17.0]
[1673311357392,37.0,16.448,16.435,17.0]
[1673311358038,37.0,16.448,16.434,114.6583]
[1673311358231,45.62,16.447,16.434,114.6583]
[1673311358436,17.0,16.446,16.434,114.6583]
[1673311358652,20.0,16.444,16.434,114.6583]
[1673311358874,17.0,16.443,16.434,114.6583]
[1673311360132,17.0,16.443,16.42,110.86]
[1673311360133,20.0,16.442,16.422,116.2683]
[1673311360337,65.63,16.442,16.422,116.2683]
[1673311360659,20.0,16.441,16.424,18.09964779]
[1673311360871,17.0,16.44,16.424,18.09964779]
[1673311361080,20.0,16.439,16.424,18.09964779]
[1673311361279,20.0,16.439,16.425,134.34474779]
[1673311367278,40.0,16.442,16.425,134.34474779]
[1673311369086,40.0,16.442,16.427,20.0]
[1673311369404,40.0,16.442,16.427,18.09964779]
[1673311370887,20.0,16.442,16.427,18.09964779]
[1673311374130,20.0,16.442,16.427,11.09964779]
[1673311374328,20.0,16.441,16.427,11.09964779]
[1673311374529,20.0,16.44,16.427,11.09964779]
[1673311378452,45.62,16.445,16.427,11.09964779]
[1673311378639,182.6401,16.448,16.428,20.0]
[1673311378967,20.0,16.446,16.429,38.09964779]
[1673311379186,17.0,16.445,16.431,20.0]
[1673311379586,17.0,16.445,16.432,20.0]
[1673311379996,62.62,16.445,16.432,20.0]
[1673311380210,62.62,16.445,16.431,20.0]
[1673311381604,20.0,16.444,16.431,20.0]
[1673311382757,62.62,16.445,16.431,20.0]
[1673311383890,62.62,16.445,16.432,17.0]
[1673311386026,45.62,16.445,16.432,17.0]
[1673311387810,45.62,16.445,16.432,35.09964779]
[1673311388002,45.62,16.446,16.432,35.09964779]
[1673311388212,20.0,16.445,16.432,35.09964779]
[1673311389594,45.62,16.446,16.432,35.09964779]
[1673311389807,20.0,16.455,16.44,22.1]
[1673311390002,114.9177,16.466,16.441,20.0]
[1673311390214,114.9177,16.466,16.441,237.09702011]
[1673311390537,65.57,16.465,16.442,187.55951352]
[1673311390742,45.57,16.465,16.443,20.0]
[1673311391074,45.56,16.469,16.45,22.1]
[1673311391277,45.56,16.469,16.452,20.0]
[1673311391490,45.54,16.476,16.452,20.0]
[1673311391681,45.54,16.476,16.453,217.09702011]
[1673311392105,20.0,16.474,16.454,37.0]
[1673311392436,82.55,16.473,16.454,85.63994989]
[1673311392746,82.55,16.473,16.455,20.0]
[1673311392965,65.55,16.473,16.457,20.0]
[1673311394747,65.55,16.473,16.456,17.0]
[1673311394748,65.55,16.473,16.455,20.0]
[1673311395149,65.55,16.473,16.455,68.63994989]
[1673311395467,65.55,16.473,16.455,48.63994989]
[1673311395679,65.55,16.473,16.457,20.0]
[1673311396413,65.55,16.473,16.456,37.0]
[1673311396740,65.55,16.473,16.456,17.0]
[1673311396950,20.0,16.471,16.456,17.0]
[1673311397179,82.56,16.47,16.456,17.0]
[1673311397372,82.56,16.47,16.455,48.63994989]
[1673311397567,82.56,16.47,16.453,168.45707022]
[1673311397568,82.56,16.47,16.453,130.96194779]
[1673311397993,82.56,16.47,16.455,20.0]
[1673311398841,37.0,16.47,16.455,20.0]
[1673311399370,45.56,16.469,16.455,20.0]
[1673311399567,17.0,16.468,16.455,20.0]
[1673311399904,17.0,16.468,16.454,20.0]
[1673311401567,17.0,16.468,16.44,110.36]
[1673311401780,45.56,16.467,16.448,20.0]
[1673311402118,37.0,16.466,16.448,20.0]
[1673311402424,45.57,16.465,16.448,20.0]
[1673311402626,20.0,16.463,16.448,20.0]
[1673311402824,45.58,16.462,16.448,20.0]
[1673311403030,45.58,16.462,16.449,17.0]
[1673311403260,45.58,16.462,16.45,20.0]
[1673311403471,45.57,16.465,16.451,17.0]
[1673311403681,37.0,16.464,16.452,20.0]
[1673311404003,45.57,16.463,16.452,20.0]
[1673311405888,45.57,16.463,16.452,136.6785]
[1673311407554,45.56,16.468,16.452,136.6785]
[1673311407763,20.0,16.47,16.454,20.0]
[1673311407991,65.55,16.471,16.454,20.0]
[1673311408184,20.0,16.47,16.454,20.0]
[1673311408611,20.0,16.469,16.454,20.0]
[1673311409346,20.0,16.469,16.455,17.0]
[1673311410814,20.0,16.469,16.456,20.0]
[1673311411132,20.0,16.47,16.456,20.0]
[1673311411342,45.54,16.475,16.458,20.0]
[1673311411571,45.54,16.475,16.459,111.0324]
[1673311411758,45.54,16.475,16.459,131.0324]
[1673311412402,45.54,16.477,16.459,131.0324]
[1673311412632,117.4036,16.478,16.46,20.0]
[1673311412817,117.4036,16.478,16.461,20.0]
[1673311413141,117.4036,16.478,16.462,20.0]
[1673311413453,45.53,16.479,16.462,20.0]
[1673311413862,45.52,16.481,16.462,20.0]
[1673311414084,20.0,16.479,16.462,20.0]
[1673311414291,45.53,16.478,16.462,20.0]
[1673311415445,20.0,16.478,16.462,20.0]
[1673311416287,45.53,16.479,16.462,20.0]
[1673311417447,20.0,16.48,16.462,62.21707701]
[1673311417656,65.52,16.482,16.462,62.21707701]
[1673311417976,20.0,16.481,16.463,18.09964779]
[1673311418192,65.53,16.48,16.463,18.09964779]
[1673311418501,20.0,16.479,16.462,62.21707701]
[1673311419237,65.53,16.48,16.462,62.21707701]
[1673311419551,20.0,16.48,16.462,62.21707701]
[1673311419976,45.52,16.481,16.463,60.3167248]
[1673311420281,45.51,16.485,16.471,20.0]
[1673311420486,117.4036,16.486,16.472,20.0]
[1673311421214,117.4036,16.486,16.471,130.1169]
[1673311421962,45.51,16.488,16.472,20.0]
[1673311422156,14.1940216,16.489,16.472,20.0]
[1673311422694,14.1940216,16.489,16.471,148.21654779]
[1673311422905,20.0,16.487,16.471,130.1169]
[1673311423558,45.51,16.486,16.471,130.1169]
[1673311423749,20.0,16.485,16.471,130.1169]
[1673311424902,45.52,16.484,16.471,130.1169]
[1673311425117,20.0,16.483,16.471,130.1169]
[1673311425647,45.52,16.484,16.471,130.1169]
[1673311426267,22.07,16.5,16.471,130.1169]
[1673311426484,23.770213,16.496,16.472,94.77219944]
[1673311426802,20.0,16.495,16.473,20.0]
[1673311427121,20.0,16.493,16.472,52.55512243]
[1673311427333,45.49,16.492,16.472,32.55512243]
[1673311427523,20.0,16.491,16.472,32.55512243]
[1673311427862,20.0,16.489,16.472,32.55512243]
[1673311428174,45.51,16.488,16.472,32.55512243]
[1673311428388,20.0,16.489,16.472,32.55512243]
[1673311428696,45.51,16.488,16.472,32.55512243]
[1673311429096,20.0,16.489,16.472,32.55512243]
[1673311429306,45.51,16.488,16.472,32.55512243]
[1673311430792,45.5,16.49,16.472,32.55512243]
[1673311431003,20.0,16.489,16.472,32.55512243]
[1673311431217,45.51,16.488,16.472,32.55512243]
[1673311435934,65.5,16.489,16.472,32.55512243]
[1673311436578,20.0,16.489,16.473,18.09964779]
[1673311436787,20.0,16.492,16.474,20.0]
[1673311437007,65.5,16.491,16.474,20.0]
[1673311438353,20.0,16.49,16.473,18.09964779]
[1673311438589,20.0,16.488,16.472,74.72749498]
[1673311438982,45.51,16.487,16.472,32.55512243]
[1673311440053,20.0,16.49,16.473,18.09964779]
[1673311440251,20.0,16.489,16.473,18.09964779]
[1673311440575,65.5,16.489,16.473,18.09964779]
[1673311441520,65.5,16.489,16.473,20.0]
[1673311442701,65.5,16.489,16.472,94.72749498]
[1673311442871,65.5,16.489,16.473,20.0]
[1673311443310,65.5,16.489,16.474,42.17237255]
[1673311443946,65.5,16.489,16.475,17.0]
[1673311444257,65.5,16.489,16.475,59.17237255]
[1673311445610,65.5,16.489,16.475,17.0]
[1673311446249,65.5,16.489,16.472,32.55512243]
[1673311446460,65.5,16.489,16.471,20.0]
[1673311446461,17.0,16.488,16.471,20.0]
[1673311446777,65.51,16.487,16.462,128.1443]
[1673311446967,20.0,16.486,16.462,128.1443]
[1673311447175,82.51,16.485,16.462,128.1443]
[1673311447595,20.0,16.484,16.462,128.1443]
[1673311447925,62.52,16.483,16.462,128.1443]
[1673311448143,20.0,16.481,16.462,128.1443]
[1673311448342,82.53,16.48,16.462,128.1443]
[1673311448752,65.53,16.48,16.462,128.1443]
[1673311449276,65.53,16.48,16.462,108.1443]
[1673311449500,20.0,16.478,16.462,108.1443]
[1673311449702,45.54,16.477,16.462,108.1443]
[1673311450348,45.54,16.477,16.462,126.24394779]
[1673311450659,45.54,16.477,16.462,108.1443]
[1673311450980,17.0,16.476,16.461,108.6606]
[1673311451190,45.54,16.475,16.462,20.0]
[1673311451390,17.0,16.474,16.462,20.0]
[1673311451604,45.55,16.473,16.462,20.0]
[1673311452974,17.0,16.472,16.458,20.0]
[1673311453811,17.0,16.473,16.458,20.0]
[1673311454023,45.55,16.472,16.458,20.0]
[1673311454460,17.0,16.473,16.458,20.0]
[1673311455287,37.0,16.473,16.456,116.967]
[1673311455502,20.0,16.471,16.456,116.967]
[1673311455718,82.56,16.47,16.456,116.967]
[1673311456459,20.0,16.469,16.453,18.09964779]
[1673311456654,62.56,16.468,16.453,18.09964779]
[1673311456868,45.56,16.468,16.453,18.09964779]
[1673311457616,65.56,16.469,16.453,18.09964779]
[1673311457824,45.56,16.469,16.453,18.09964779]
[1673311458241,45.56,16.469,16.454,20.0]
[1673311458663,45.56,16.469,16.455,18.09964779]
[1673311459292,65.56,16.469,16.455,18.09964779]
[1673311459503,20.0,16.467,16.455,18.09964779]
[1673311459825,65.56,16.467,16.455,18.09964779]
[1673311460022,17.0,16.466,16.455,18.09964779]
[1673311460750,62.57,16.466,16.455,18.09964779]
[1673311461193,45.57,16.466,16.455,18.09964779]
[1673311461379,45.56,16.468,16.455,18.09964779]
[1673311461589,20.0,16.466,16.455,18.09964779]
[1673311461821,45.56,16.468,16.455,18.09964779]
[1673311462018,65.56,16.469,16.455,18.09964779]
[1673311462544,65.56,16.469,16.453,113.0119]
[1673311462756,20.0,16.467,16.453,113.0119]
[1673311462967,45.57,16.466,16.453,131.11154779]
[1673311464974,45.56,16.468,16.453,131.11154779]
[1673311465185,17.0,16.467,16.453,131.11154779]
[1673311465395,45.57,16.466,16.453,131.11154779]
[1673311465805,17.0,16.467,16.453,131.11154779]
[1673311467692,17.0,16.468,16.453,131.11154779]
[1673311468451,20.0,16.467,16.446,36.78517255]
[1673311468639,20.0,16.465,16.447,115.6672]
[1673311468851,17.0,16.464,16.447,115.6672]
[1673311470028,20.0,16.465,16.451,18.09964779]
[1673311470227,20.0,16.465,16.452,20.0]
[1673311470437,20.0,16.465,16.452,38.09964779]
[1673311471486,20.0,16.465,16.452,153.31714779]
[1673311474018,20.0,16.465,16.453,17.0]
[1673311478118,20.0,16.465,16.452,153.31714779]
[1673311478321,17.0,16.464,16.452,135.2175]
[1673311479378,20.0,16.465,16.452,135.2175]
[1673311479594,134.5885,16.47,16.453,17.0]
[1673311479806,134.5885,16.47,16.453,35.09964779]
[1673311480009,134.5885,16.47,16.453,17.0]
[1673311480220,20.0,16.469,16.453,35.09964779]
[1673311481273,20.0,16.467,16.453,35.09964779]
[1673311487470,20.0,16.469,16.453,35.09964779]
[1673311487799,65.56,16.469,16.453,17.0]
[1673311488199,20.0,16.469,16.453,17.0]
[1673311488735,20.0,16.469,16.454,18.09964779]
[1673311488949,20.0,16.469,16.455,17.0]
[1673311489352,20.0,16.469,16.456,18.09964779]
[1673311489578,20.0,16.469,16.452,135.2175]
[1673311490106,20.0,16.469,16.452,153.31714779]
[1673311490944,20.0,16.469,16.453,17.0]
[1673311491794,20.0,16.469,16.453,35.09964779]
[1673311495267,134.5885,16.47,16.453,35.09964779]
[1673311495577,134.5885,16.47,16.454,20.0]
[1673311495788,134.5885,16.47,16.454,139.6524]
[1673311495984,134.5885,16.47,16.454,157.75204779]
[1673311496192,45.54,16.474,16.456,20.0]
[1673311496519,45.53,16.478,16.457,55.09964779]
[1673311496718,20.0,16.477,16.458,20.0]
[1673311496928,20.0,16.477,16.46,20.0]
[1673311497137,20.0,16.477,16.461,135.4092]
[1673311497347,20.0,16.477,16.462,17.0]
[1673311499654,20.0,16.475,16.462,17.0]
[1673311500072,18.09964779,16.474,16.462,17.0]
[1673311500278,18.09964779,16.474,16.461,135.4092]
[1673311500491,17.0,16.473,16.461,20.0]
[1673311500714,17.0,16.473,16.455,20.0]
[1673311500926,18.09964779,16.472,16.456,20.0]
[1673311501138,45.54,16.474,16.457,20.0]
[1673311501559,38.09964779,16.475,16.457,20.0]
[1673311501964,38.09964779,16.475,16.458,17.0]
[1673311502174,38.09964779,16.475,16.459,20.0]
[1673311502400,38.09964779,16.475,16.46,17.0]
[1673311502617,38.09964779,16.475,16.461,20.0]
[1673311502826,17.0,16.474,16.459,20.0]
[1673311503019,20.0,16.473,16.459,20.0]
[1673311503230,17.0,16.472,16.459,20.0]
[1673311503440,18.09964779,16.473,16.457,20.0]
[1673311503668,45.54,16.474,16.457,20.0]
[1673311503861,178.1121,16.479,16.458,20.0]
[1673311503862,45.53,16.478,16.458,20.0]
[1673311504071,20.0,16.477,16.459,17.0]
[1673311504278,20.0,16.477,16.459,55.09964779]
[1673311504496,20.0,16.477,16.46,20.0]
[1673311504703,20.0,16.477,16.461,37.0]
[1673311504921,20.0,16.477,16.461,261.5263]
[1673311505760,65.53,16.478,16.461,261.5263]
[1673311505961,178.1121,16.479,16.461,244.5263]
[1673311506175,62.53,16.478,16.461,244.5263]
[1673311506612,20.0,16.477,16.461,244.5263]
[1673311506825,62.54,16.476,16.461,244.5263]
[1673311507135,45.54,16.476,16.461,244.5263]
[1673311507328,17.0,16.475,16.456,20.0]
[1673311507543,65.54,16.474,16.454,114.1621]
[1673311507765,17.0,16.473,16.454,114.1621]
[1673311507981,20.0,16.471,16.454,114.1621]
[1673311508183,65.56,16.47,16.454,114.1621]
[1673311509140,65.56,16.47,16.455,17.0]
[1673311509544,65.56,16.47,16.455,35.09964779]
[1673311509750,20.0,16.47,16.456,20.0]
[1673311509961,20.0,16.47,16.457,17.0]
[1673311510176,20.0,16.47,16.456,18.09964779]
[1673311510484,20.0,16.47,16.454,114.1621]
[1673311510691,62.56,16.469,16.454,114.1621]
[1673311510910,62.06,16.469,16.454,114.1621]
[1673311511766,17.0,16.469,16.456,20.0]
[1673311511958,17.0,16.469,16.455,17.0]
[1673311513116,45.56,16.47,16.455,17.0]
[1673311513447,20.0,16.469,16.456,20.0]
[1673311513884,20.0,16.471,16.456,20.0]
[1673311514495,20.0,16.471,16.456,18.09964779]
[1673311514808,20.0,16.471,16.457,17.0]
[1673311515872,85.55,16.471,16.457,17.0]
[1673311516074,40.0,16.471,16.457,17.0]
[1673311516824,20.0,16.471,16.457,17.0]
[1673311517224,20.0,16.469,16.457,17.0]
[1673311517668,20.0,16.469,16.454,114.1621]
[1673311517982,20.0,16.467,16.454,114.1621]
[1673311518816,20.0,16.465,16.449,113.67]
[1673311519023,20.0,16.465,16.45,20.0]
[1673311521322,18.09964779,16.464,16.45,20.0]
[1673311521533,65.57,16.463,16.443,112.5524]
[1673311521758,182.9962,16.463,16.443,112.5524]
[1673311521958,35.09964779,16.462,16.443,112.5524]
[1673311522176,65.58,16.461,16.443,112.5524]
[1673311522391,17.0,16.46,16.443,112.5524]
[1673311522707,65.59,16.459,16.443,112.5524]
[1673311522915,37.0,16.458,16.443,112.5524]
[1673311523229,45.59,16.457,16.443,112.5524]
[1673311523656,17.0,16.456,16.443,112.5524]
[1673311523847,20.0,16.455,16.443,112.5524]
[1673311524811,20.0,16.455,16.439,18.09964779]
[1673311525021,82.6,16.454,16.436,118.2915]
[1673311525228,20.0,16.453,16.436,118.2915]
[1673311525417,82.6,16.452,16.436,118.2915]
[1673311525627,20.0,16.451,16.436,118.2915]
[1673311525841,65.61,16.45,16.436,118.2915]
[1673311526051,20.0,16.45,16.436,118.2915]
[1673311526905,20.0,16.469,16.438,20.0]
[1673311527127,108.9383,16.46,16.439,20.0]
[1673311527334,20.0,16.459,16.439,69.18228015]
[1673311527521,20.0,16.459,16.44,66.18228015]
[1673311527728,20.0,16.459,16.441,20.0]
[1673311528050,45.59,16.458,16.442,17.0]
[1673311528276,17.0,16.457,16.442,17.0]
[1673311528491,20.0,16.456,16.442,17.0]
[1673311528805,20.0,16.454,16.436,118.2915]
[1673311529011,62.6,16.453,16.436,118.2915]
[1673311529214,20.0,16.452,16.436,118.2915]
[1673311529427,20.0,16.45,16.436,118.2915]
[1673311529623,37.0,16.449,16.436,118.2915]
[1673311530044,20.0,16.449,16.436,118.2915]
[1673311530275,20.0,16.449,16.437,17.0]
[1673311530484,20.0,16.45,16.437,35.09964779]
[1673311530696,20.0,16.451,16.437,17.0]
[1673311531542,20.0,16.45,16.437,17.0]
[1673311538242,20.0,16.448,16.434,115.5979]
[1673311538456,62.62,16.447,16.434,115.5979]
[1673311538668,45.62,16.447,16.434,115.5979]
[1673311539503,20.0,16.448,16.434,115.5979]
[1673311539961,20.0,16.448,16.435,17.0]
[1673311540139,20.0,16.45,16.435,17.0]
[1673311540563,20.0,16.449,16.435,17.0]
[1673311541096,20.0,16.449,16.435,75.28598697]
[1673311541306,45.6,16.454,16.436,40.0]
[1673311541519,621.1,16.465,16.436,40.0]
[1673311541520,163.4059,16.458,16.437,17.0]
[1673311541711,20.0,16.457,16.438,151.4055]
[1673311541916,20.0,16.457,16.439,17.0]
[1673311542127,20.0,16.457,16.44,20.0]
[1673311542452,20.0,16.457,16.44,38.09964779]
[1673311542663,20.0,16.457,16.44,20.0]
[1673311542875,17.0,16.456,16.439,20.0]
[1673311543074,20.0,16.455,16.439,20.0]
[1673311543967,20.0,16.455,16.44,17.0]
[1673311544181,20.0,16.455,16.441,20.0]
[1673311544374,20.0,16.455,16.442,17.0]
[1673311544583,20.0,16.455,16.443,110.3155]
[1673311544793,20.0,16.455,16.444,17.0]
[1673311558253,62.59,16.456,16.444,17.0]
[1673311558675,17.0,16.456,16.444,17.0]
[1673311560671,17.0,16.456,16.443,110.3155]
[1673311560877,20.0,16.455,16.443,110.3155]
[1673311561090,20.0,16.453,16.438,111.4055]
[1673311561421,20.0,16.451,16.425,108.7295]
[1673311561613,65.61,16.45,16.427,115.6649]
[1673311561818,17.0,16.449,16.427,115.6649]
[1673311562039,20.0,16.447,16.427,115.6649]
[1673311562266,17.0,16.446,16.427,115.6649]
[1673311563987,62.62,16.446,16.427,115.6649]
[1673311564374,20.0,16.444,16.427,115.6649]
[1673311564579,20.0,16.443,16.427,115.6649]
[1673311565737,20.0,16.443,16.428,17.0]
[1673311566698,45.62,16.446,16.429,20.0]
[1673311566904,45.62,16.448,16.43,17.0]
[1673311567118,45.6,16.452,16.43,17.0]
[1673311567646,45.62,16.448,16.43,17.0]
[1673311568078,20.0,16.447,16.43,17.0]
[1673311568287,20.0,16.447,16.431,20.0]
[1673311568920,17.0,16.446,16.431,20.0]
[1673311569132,20.0,16.445,16.429,20.0]
[1673311569331,17.0,16.444,16.428,20.0]
[1673311569755,20.0,16.447,16.429,20.0]
[1673311569964,20.0,16.447,16.43,17.0]
[1673311570178,20.0,16.447,16.431,20.0]
[1673311570398,20.0,16.447,16.432,17.0]
[1673311570616,17.0,16.446,16.432,17.0]
[1673311570934,62.62,16.446,16.431,20.0]
[1673311571140,62.62,16.446,16.428,20.0]
[1673311571354,20.0,16.445,16.428,20.0]
[1673311571550,17.0,16.444,16.428,20.0]
[1673311571875,20.0,16.445,16.428,20.0]
[1673311572482,20.0,16.445,16.429,17.0]
[1673311572679,20.0,16.445,16.43,20.0]
[1673311572896,20.0,16.445,16.431,17.0]
[1673311573134,20.0,16.445,16.432,20.0]
[1673311573345,20.0,16.445,16.433,17.0]
[1673311573854,20.0,16.445,16.434,116.3569]
[1673311575218,45.62,16.447,16.434,116.3569]
[1673311575417,17.0,16.446,16.434,116.3569]
[1673311575619,20.0,16.446,16.434,116.3569]
[1673311576058,17.0,16.447,16.434,116.3569]
[1673311576256,17.0,16.447,16.435,17.0]
[1673311579098,62.62,16.447,16.435,17.0]
[1673311579292,20.0,16.446,16.434,116.3569]
[1673311581211,17.0,16.447,16.434,116.3569]
[1673311581520,17.0,16.447,16.435,17.0]
[1673311581943,37.0,16.448,16.435,17.0]
[1673311583717,55.09964779,16.448,16.435,17.0]
[1673311583925,20.0,16.447,16.434,116.3569]
[1673311584136,17.0,16.446,16.434,116.3569]
[1673311586350,17.0,16.446,16.416,119.8029]
[1673311586569,20.0,16.444,16.427,113.9256]
[1673311586787,62.63,16.443,16.427,113.9256]
[1673311586968,80.72964779,16.443,16.427,113.9256]
[1673311587182,58.09964779,16.442,16.427,113.9256]
[1673311587390,17.0,16.441,16.427,113.9256]
[1673311587723,20.0,16.44,16.427,113.9256]
[1673311588559,20.0,16.44,16.428,17.0]
[1673311590036,20.0,16.441,16.428,17.0]
[1673311590240,374.6243326,16.502,16.428,17.0]
[1673311590241,45.62,16.447,16.428,17.0]
[1673311590456,65.62,16.448,16.429,20.0]
[1673311590664,20.0,16.448,16.43,37.0]
[1673311590873,20.0,16.448,16.431,20.0]
[1673311595276,20.0,16.448,16.43,20.0]
[1673311596890,17.0,16.447,16.43,20.0]
[1673311597106,20.0,16.446,16.428,20.0]
[1673311598239,20.0,16.446,16.43,20.0]
[1673311598449,20.0,16.446,16.431,17.0]
[1673311598669,20.0,16.446,16.432,20.0]
[1673311598881,20.0,16.446,16.433,17.0]
[1673311599510,20.0,16.446,16.434,117.6573]
[1673311599935,20.0,16.446,16.435,17.0]
[1673311600469,17.0,16.447,16.435,17.0]
[1673311601181,110.4659,16.45,16.435,17.0]
[1673311601388,20.0,16.448,16.435,17.0]
[1673311601611,110.4659,16.45,16.435,17.0]
[1673311601840,20.0,16.449,16.435,17.0]
[1673311602032,40.0,16.449,16.435,17.0]
[1673311602239,20.0,16.449,16.435,17.0]
[1673311602561,20.0,16.447,16.435,17.0]
[1673311603849,17.0,16.446,16.434,117.6573]
[1673311604049,20.0,16.445,16.434,117.6573]
[1673311604224,45.62,16.447,16.434,117.6573]
[1673311604437,45.61,16.449,16.434,117.6573]
[1673311604669,156.0759,16.45,16.434,117.6573]
[1673311604987,20.0,16.448,16.434,117.6573]
[1673311605824,110.4659,16.45,16.434,117.6573]
[1673311606137,40.0,16.449,16.434,117.6573]
[1673311607283,40.0,16.449,16.435,17.0]
[1673311607713,17.0,16.448,16.435,17.0]
[1673311609075,40.0,16.449,16.435,17.0]
[1673311611080,20.0,16.448,16.435,17.0]
[1673311611823,20.0,16.446,16.428,20.0]
[1673311612132,62.62,16.445,16.428,20.0]
[1673311612331,80.71964779,16.445,16.428,20.0]
[1673311612545,20.0,16.443,16.428,20.0]
[1673311612752,17.0,16.442,16.428,20.0]
[1673311613505,38.09964779,16.444,16.428,20.0]
[1673311613715,20.0,16.442,16.428,20.0]
[1673311614863,20.0,16.44,16.428,20.0]
[1673311615272,20.0,16.44,16.427,113.9256]
[1673311615501,20.0,16.439,16.427,113.9256]
[1673311619488,20.0,16.439,16.411,20.0]
[1673311619699,20.0,16.437,16.419,128.2312]
[1673311619909,62.65,16.436,16.419,128.2312]
[1673311620351,20.0,16.435,16.419,128.2312]
[1673311620536,17.0,16.434,16.419,128.2312]
[1673311620865,17.0,16.434,16.42,20.0]
[1673311621079,17.0,16.434,16.421,20.0]
[1673311621898,17.0,16.434,16.42,20.0]
[1673311622114,17.0,16.434,16.419,108.2312]
[1673311622348,20.0,16.433,16.411,20.0]
[1673311622544,82.66,16.432,16.414,18.09964779]
[1673311622771,20.0,16.43,16.412,115.0614]
[1673311623202,20.0,16.429,16.412,115.0614]
[1673311624440,20.0,16.429,16.412,133.11448205]
[1673311625818,20.0,16.429,16.419,17.0]
[1673311626034,20.0,16.429,16.412,115.0614]
[1673311626377,17.0,16.428,16.412,115.0614]
[1673311626755,20.0,16.427,16.412,115.0614]
[1673311629478,17.0,16.426,16.412,115.0614]
[1673311629922,63.77964779,16.425,16.412,115.0614]